[Event "8. Arber-Schachopen 2019"]
[Site "Bodenmais"]
[Date "2019.08.01"]
[Round "6.23"]
[White "Kolb, Wolfgang"]
[Black "Kiwitz, Henri"]
[Result "1-0"]
[ECO "A15"]
[WhiteElo "2099"]
[BlackElo "1755"]
[Annotator "NA"]
[PlyCount "89"]
[EventDate "2019.07.27"]
[EventCountry "GER"]
[SourceTitle "playchess.com"]
[Source "ChessBase"]
[SourceQuality "1"]
[TimeControl "40/5400+30:1800+30"]

1. c4 {[%emt 0:00:00]} Nf6 {[%emt 0:00:00]} 2. g3 {[%emt 0:00:00]} e6 {[%emt 0:00:16]} 3. Nf3 {[%emt 0:00:01]} d5 {[%emt 0:00:06]} 4. b3 {[%emt 0:00:05]} Be7 {[%emt 0:00:07]} 5. Bg2 {[%emt 0:00:26]} O-O {[%emt 0:00:07]} 6. Bb2 {[%emt 0:00:03]} b6 {[%emt 0:00:05]} 7. O-O {[%emt 0:00:08]} c5 {[%emt 0:00:09]} 8. e3 {[%emt 0:00:39]} Nc6 {[%emt 0:00:22]} 9. Nc3 {[%emt 0:02:46]} Ba6 {[%emt 0:00:39]} 10. d3 {[%emt 0:02:31]} Rc8 {[%emt 0:00:39]} 11. Qe2 {[%emt 0:01:38]} Qd7 {[%emt 0:00:50]} 12. Rfd1 {[%emt 0:04:25]} Rfd8 {[%emt 0:00:28]} 13. Rac1 {[%emt 0:26:43]} Qb7 {[%emt 0:00:30]} 14. a4 {[%emt 0:15:07]} Qb8 {[%emt 0:04:38]} 15. Nb5 {[%emt 0:01:50]} h6 {[%emt 0:11:33]} 16. Bc3 {[%emt 0:04:21]} Bb7 {[%emt 0:05:34]} 17. Qb2 {[%emt 0:03:03]} a6 {[%emt 0:01:03]} 18. Na3 {[%emt 0:00:13]} d4 {[%emt 0:00:57]} 19. exd4 {[%emt 0:02:26]} Nxd4 {[%emt 0:09:18]} 20. Bxd4 {[%emt 0:01:30]} cxd4 {[%emt 0:00:14]} 21. Re1 {[%emt 0:06:30]} Qa8 {[%emt 0:04:24]} 22. Nh4 {[%emt 0:01:35]} Bxg2 {[%emt 0:07:35]} 23. Nxg2 {[%emt 0:00:01]} Qf3 {[%emt 0:01:08]} 24. Rcd1 {[%emt 0:14:07]} Ng4 {[%emt 0:01:37]} 25. Nb1 {[%emt 0:00:04]} Bb4 {[%emt 0:02:11]} 26. Qe2 {[%emt 0:00:50]} Qf5 {[%emt 0:02:32]} 27. Nh4 {[%emt 0:03:40]} Qa5 {[%emt 0:24:16]} 28. Nd2 {[%emt 0:02:54]} Rc5 {[%emt 0:11:03]} 29. Qxg4 {[%emt 0:01:56]} Bxd2 {[%emt 0:00:10]} 30. Re2 {[%emt 0:00:03]} Rg5 {[%emt 0:05:51]} 31. Qe4 {[%emt 0:00:52]} Bc3 {[%emt 0:00:31]} 32. Nf3 {[%emt 0:00:28]} Rc5 {[%emt 0:00:20]} 33. Ne5 {[%emt 0:00:47]} f5 {[%emt 0:01:26]} 34. Qh4 {[%emt 0:00:08]} Rxe5 {[%emt 0:01:55]} 35. Qxd8+ {[%emt 0:01:51]} Kh7 {[%emt 0:00:06]} 36. Rxe5 {[%emt 0:01:13]} Qxe5 {[%emt 0:00:05]} 37. Qxb6 {[%emt 0:00:06]} Qe2 {[%emt 0:00:07]} 38. Rf1 {[%emt 0:00:09]} e5 {[%emt 0:01:29]} 39. Qe6 {[%emt 0:01:30]} Qxd3 {[%emt 0:03:28]} 40. Qxe5 {[%emt 0:01:46]} Qc2 {[%emt 0:00:10]} 41. c5 {[%emt 0:31:20]} Bb4 {[%emt 0:01:31]} 42. Qxd4 {[%emt 0:00:00]} Bxc5 {[%emt 0:00:10]} 43. Qc4 {[%emt 0:00:00]} Qxc4 {[%emt 0:00:34]} 44. bxc4 {[%emt 0:00:00]} Kg6 {[%emt 0:00:15]} 45. Rd1 {[%emt 0:00:00]} 1-0

[Event "8. Arber-Schachopen 2019"]
[Site "Bodenmais"]
[Date "2019.08.01"]
[Round "6.24"]
[White "Malditz, Dieter"]
[Black "Beulertz, Stefan"]
[Result "0-1"]
[ECO "E00"]
[WhiteElo "1869"]
[BlackElo "2033"]
[Annotator "NA"]
[PlyCount "80"]
[EventDate "2019.07.27"]
[EventCountry "GER"]
[SourceTitle "playchess.com"]
[Source "ChessBase"]
[SourceQuality "1"]
[TimeControl "40/5400+30:1800+30"]

1. d4 {[%emt 0:00:00]} e6 {[%emt 0:00:00]} 2. c4 {[%emt 0:00:52]} Bb4+ {[%emt 0:03:11]} 3. Nd2 {[%emt 0:01:13]} Nf6 {[%emt 0:00:18]} 4. a3 {[%emt 0:00:11]} Be7 {[%emt 0:00:17]} 5. Ngf3 {[%emt 0:01:02]} d5 {[%emt 0:06:07]} 6. e3 {[%emt 0:01:19]} b6 {[%emt 0:05:14]} 7. Bd3 {[%emt 0:07:01]} c5 {[%emt 0:00:31]} 8. O-O {[%emt 0:00:26]} Bb7 {[%emt 0:02:15]} 9. b3 {[%emt 0:02:52]} O-O {[%emt 0:04:17]} 10. Bb2 {[%emt 0:02:08]} Nbd7 {[%emt 0:02:10]} 11. Qe2 {[%emt 0:03:13]} Ne4 {[%emt 0:01:58]} 12. Ne5 {[%emt 0:05:50]} Nxe5 {[%emt 0:13:55]} 13. dxe5 {[%emt 0:00:46]} Nxd2 {[%emt 0:06:08]} 14. Qxd2 {[%emt 0:02:48]} dxc4 {[%emt 0:00:10]} 15. bxc4 {[%emt 0:00:13]} Qc7 {[%emt 0:02:51]} 16. Qc2 {[%emt 0:00:32]} g6 {[%emt 0:01:34]} 17. Be4 {[%emt 0:17:32]} Bc6 {[%emt 0:03:39]} 18. Rad1 {[%emt 0:02:09]} Rfd8 {[%emt 0:00:33]} 19. f4 {[%emt 0:09:11]} Qb7 {[%emt 0:06:04]} 20. Bxc6 {[%emt 0:01:03]} Qxc6 {[%emt 0:00:04]} 21. Bc3 {[%emt 0:04:22]} a6 {[%emt 0:09:38]} 22. a4 {[%emt 0:09:15]} Rab8 {[%emt 0:03:12]} 23. h4 {[%emt 0:07:12]} Bxh4 {[%emt 0:02:41]} 24. Rd6 {[%emt 0:00:49]} Qc7 {[%emt 0:01:51]} 25. a5 Be7 {[%emt 0:00:55]} 26. axb6 {[%emt 0:03:53]} Qc8 {[%emt 0:04:06]} 27. Rfd1 {[%emt 0:01:55]} f5 {[%emt 0:07:47]} 28. b7 {[%emt 0:05:30]} Rxb7 {[%emt 0:00:48]} 29. Rxa6 {[%emt 0:01:26]} Rbd7 {[%emt 0:02:14]} 30. Rxd7 {[%emt 0:02:45]} Qxd7 {[%emt 0:00:21]} 31. Ba5 {[%emt 0:02:14]} Rb8 {[%emt 0:04:23]} 32. Bb6 {[%emt 0:02:51]} Rb7 {[%emt 0:02:06]} 33. Ra8+ {[%emt 0:00:24]} Kg7 {[%emt 0:00:16]} 34. Ba5 {[%emt 0:00:26]} Qc6 {[%emt 0:00:52]} 35. Bd8 {[%emt 0:02:09]} Rd7 {[%emt 0:00:59]} 36. Bxe7 {[%emt 0:01:02]} Qxa8 {[%emt 0:00:12]} 37. Bxc5 {[%emt 0:00:51]} Qa1+ {[%emt 0:00:16]} 38. Kh2 {[%emt 0:00:09]} Rd1 {[%emt 0:00:19]} 39. Bd4 {[%emt 0:01:05]} Rh1+ {[%emt 0:00:16]} 40. Kg3 {[%emt 0:00:00]} h5 0-1

[Event "8. Arber-Schachopen 2019"]
[Site "Bodenmais"]
[Date "2019.08.01"]
[Round "6.25"]
[White "Peglau, Mirjam"]
[Black "Glaser, Max"]
[Result "1/2-1/2"]
[ECO "C26"]
[WhiteElo "1759"]
[BlackElo "1949"]
[Annotator "NA"]
[PlyCount "27"]
[EventDate "2019.07.27"]
[EventCountry "GER"]
[SourceTitle "playchess.com"]
[Source "ChessBase"]
[SourceQuality "1"]
[TimeControl "40/5400+30:1800+30"]

1. e4 {[%emt 0:00:00]} e5 {[%emt 0:00:00]} 2. Nc3 {[%emt 0:00:00]} Nf6 {[%emt 0:00:00]} 3. Bc4 {[%emt 0:00:10]} Bc5 {[%emt 0:00:01]} 4. d3 {[%emt 0:00:36]} Nc6 {[%emt 0:02:01]} 5. Be3 {[%emt 0:01:22]} Bxe3 {[%emt 0:01:28]} 6. fxe3 {[%emt 0:00:02]} Na5 {[%emt 0:06:08]} 7. Bb3 O-O {[%emt 0:03:32]} 8. Nf3 {[%emt 0:02:08]} Nxb3 {[%emt 0:00:28]} 9. axb3 {[%emt 0:00:03]} Qe7 {[%emt 0:00:46]} 10. Qd2 {[%emt 0:02:33]} c6 {[%emt 0:00:09]} 11. O-O d5 {[%emt 0:07:27]} 12. exd5 {[%emt 0:06:06]} cxd5 {[%emt 0:00:36]} 13. Rae1 {[%emt 0:13:17]} Bd7 {[%emt 0:07:20]} 14. e4 {[%emt 0:01:41]} 1/2-1/2

[Event "8. Arber-Schachopen 2019"]
[Site "Bodenmais"]
[Date "2019.08.01"]
[Round "6.26"]
[White "Strangmueller, Andreas"]
[Black "Peglau, Charis"]
[Result "0-1"]
[ECO "D25"]
[WhiteElo "1968"]
[BlackElo "1540"]
[Annotator "NA"]
[PlyCount "104"]
[EventDate "2019.07.27"]
[EventCountry "GER"]
[SourceTitle "playchess.com"]
[Source "ChessBase"]
[SourceQuality "1"]
[TimeControl "40/5400+30:1800+30"]

1. d4 {[%emt 0:00:00]} d5 {[%emt 0:00:00]} 2. c4 {[%emt 0:00:00]} dxc4 {[%emt 0:00:03]} 3. Nf3 {[%emt 0:01:02]} Nf6 {[%emt 0:00:37]} 4. e3 {[%emt 0:02:45]} Bf5 {[%emt 0:02:24]} 5. Bxc4 {[%emt 0:03:11]} e6 {[%emt 0:01:43]} 6. O-O {[%emt 0:27:58]} Be7 {[%emt 0:01:14]} 7. Nc3 {[%emt 0:05:37]} Nbd7 {[%emt 0:02:56]} 8. Re1 {[%emt 0:13:30]} Nb6 {[%emt 0:00:17]} 9. Bb3 {[%emt 0:06:38]} O-O {[%emt 0:04:03]} 10. Ne5 {[%emt 0:12:02]} c5 {[%emt 0:07:23]} 11. e4 {[%emt 0:01:35]} Bg6 {[%emt 0:01:16]} 12. Nxg6 {[%emt 0:06:42]} hxg6 {[%emt 0:00:09]} 13. Be3 {[%emt 0:06:21]} cxd4 {[%emt 0:01:33]} 14. Bxd4 {[%emt 0:00:03]} Rc8 {[%emt 0:00:32]} 15. Rc1 {[%emt 0:03:47]} Bb4 {[%emt 0:06:01]} 16. a3 {[%emt 0:01:02]} Be7 {[%emt 0:01:00]} 17. Be3 {[%emt 0:01:21]} Qxd1 {[%emt 0:02:26]} 18. Rexd1 {[%emt 0:00:31]} Rfd8 {[%emt 0:01:19]} 19. Rxd8+ {[%emt 0:02:50]} Rxd8 {[%emt 0:02:01]} 20. f3 {[%emt 0:00:05]} Rc8 {[%emt 0:02:40]} 21. Kf2 {[%emt 0:01:45]} Bc5 {[%emt 0:01:55]} 22. Bxc5 {[%emt 0:00:34]} Rxc5 {[%emt 0:00:07]} 23. Rd1 {[%emt 0:00:56]} Kf8 {[%emt 0:01:47]} 24. Rd8+ {[%emt 0:01:06]} Ke7 {[%emt 0:00:22]} 25. Rb8 {[%emt 0:00:02]} Rc7 {[%emt 0:01:22]} 26. Nb5 {[%emt 0:00:02]} Rd7 {[%emt 0:00:13]} 27. Nxa7 {[%emt 0:00:37]} Rd2+ {[%emt 0:01:05]} 28. Ke3 {[%emt 0:00:02]} Rxb2 {[%emt 0:01:25]} 29. Rxb7+ {[%emt 0:00:02]} Nfd7 {[%emt 0:01:44]} 30. Nc6+ {[%emt 0:02:23]} Kd6 {[%emt 0:00:35]} 31. Na5 {[%emt 0:00:07]} Rxg2 {[%emt 0:02:46]} 32. h4 {[%emt 0:00:47]} Rh2 {[%emt 0:01:06]} 33. Nc4+ {[%emt 0:00:12]} Nxc4+ {[%emt 0:00:14]} 34. Bxc4 {[%emt 0:00:01]} Rxh4 {[%emt 0:01:06]} 35. Bb5 {[%emt 0:00:25]} Ne5 {[%emt 0:00:47]} 36. a4 {[%emt 0:00:19]} Rh3 {[%emt 0:00:59]} 37. Be2 {[%emt 0:00:40]} Kc6 {[%emt 0:00:37]} 38. Re7 {[%emt 0:01:02]} Kb6 {[%emt 0:01:16]} 39. Kf4 {[%emt 0:00:25]} Rh5 {[%emt 0:01:18]} 40. Kg3 {[%emt 0:00:55]} g5 {[%emt 0:04:26]} 41. f4 {[%emt 0:04:10]} gxf4+ {[%emt 0:00:00]} 42. Kxf4 {[%emt 0:00:02]} Ng6+ {[%emt 0:00:01]} 43. Kg4 {[%emt 0:03:19]} Rh4+ {[%emt 0:02:01]} 44. Kg3 {[%emt 0:00:12]} Rxe4 {[%emt 0:01:47]} 45. Rxf7 {[%emt 0:01:32]} Rxe2 {[%emt 0:00:11]} 46. Rxg7 {[%emt 0:00:04]} Ne5 {[%emt 0:01:54]} 47. Re7 {[%emt 0:01:56]} Nd3 {[%emt 0:00:47]} 48. Kf3 {[%emt 0:00:22]} Re5 {[%emt 0:01:25]} 49. Rd7 {[%emt 0:01:15]} Nc5 {[%emt 0:00:53]} 50. Re7 {[%emt 0:00:42]} Nxa4 {[%emt 0:00:43]} 51. Kf4 {[%emt 0:00:11]} Re1 {[%emt 0:00:12]} 52. Kg5 {[%emt 0:00:29]} Kc6 {[%emt 0:01:09]} 0-1

[Event "8. Arber-Schachopen 2019"]
[Site "Bodenmais"]
[Date "2019.08.02"]
[Round "7.4"]
[White "Bogdanov, Egor"]
[Black "Hopman, Pieter"]
[Result "1-0"]
[ECO "B07"]
[WhiteElo "2407"]
[BlackElo "2347"]
[Annotator "ChessBase"]
[PlyCount "73"]
[EventDate "2019.07.27"]
[EventCountry "GER"]
[SourceTitle "playchess.com"]
[Source "ChessBase"]
[SourceQuality "1"]
[TimeControl "40/5400+30:1800+30"]

1. e4 {[%emt 0:00:00]} d6 {[%emt 0:00:00]} 2. d4 {[%emt 0:00:00]} Nf6 {[%emt 0:00:00]} 3. Nc3 {[%emt 0:00:00]} e5 {[%emt 0:00:00]} 4. Nge2 {[%emt 0:00:00]} c6 {[%emt 0:00:00]} 5. g3 {[%emt 0:01:43]} Be7 {[%emt 0:00:56]} 6. Bg2 {[%emt 0:00:07]} O-O {[%emt 0:00:08]} 7. O-O {[%emt 0:00:49]} b5 {[%emt 0:03:14]} 8. a3 {[%emt 0:00:51]} a5 {[%emt 0:01:33]} 9. h3 Ba6 {[%emt 0:00:26]} 10. b4 {[%emt 0:04:55]} Bc8 {[%emt 0:00:40]} 11. Be3 {[%emt 0:06:59]} Nbd7 {[%emt 0:01:06]} 12. d5 {[%emt 0:11:43]} Bb7 {[%emt 0:06:10]} 13. Qd3 {[%emt 0:03:37]} Qb8 {[%emt 0:00:06]} 14. g4 {[%emt 0:01:19]} Rc8 {[%emt 0:00:56]} 15. g5 {[%emt 0:01:15]} Nh5 {[%emt 0:03:54]} 16. h4 cxd5 {[%emt 0:08:17]} 17. Nxd5 {[%emt 0:11:52]} Bxd5 {[%emt 0:01:00]} 18. Qxd5 {[%emt 0:00:08]} Nb6 {[%emt 0:03:53]} 19. Qxb5 {[%emt 0:01:33]} Nc4 {[%emt 0:00:19]} 20. Qxb8 {[%emt 0:00:54]} Raxb8 {[%emt 0:00:25]} 21. Bf3 {[%emt 0:01:03]} Nf4 {[%emt 0:01:27]} 22. Nxf4 {[%emt 0:12:11]} Nxe3 {[%emt 0:00:20]} 23. fxe3 {[%emt 0:01:18]} exf4 {[%emt 0:00:06]} 24. exf4 {[%emt 0:06:54]} axb4 {[%emt 0:00:22]} 25. axb4 {[%emt 0:00:15]} Rxb4 {[%emt 0:00:08]} 26. Ra2 {[%emt 0:00:44]} d5 {[%emt 0:00:30]} 27. Bg4 {[%emt 0:09:46]} Rd8 {[%emt 0:07:02]} 28. e5 {[%emt 0:01:43]} h6 {[%emt 0:01:37]} 29. Bf5 {[%emt 0:02:38]} hxg5 {[%emt 0:06:54]} 30. hxg5 {[%emt 0:00:05]} g6 {[%emt 0:04:42]} 31. Bd3 {[%emt 0:00:28]} Bc5+ {[%emt 0:10:54]} 32. Kg2 {[%emt 0:00:08]} Kf8 {[%emt 0:00:15]} 33. Kf3 {[%emt 0:03:38]} Bb6 {[%emt 0:02:31]} 34. Rh1 {[%emt 0:01:06]} Kg7 {[%emt 0:01:00]} 35. Ra6 {[%emt 0:03:29]} Re8 {[%emt 0:01:16]} 36. Rh6 {[%emt 0:00:43]} Rb1 {[%emt 0:01:09]} 37. f5 1-0

[Event "8. Arber-Schachopen 2019"]
[Site "Bodenmais"]
[Date "2019.08.02"]
[Round "7.5"]
[White "Woelk, Tom-Frederic"]
[Black "Peng, Li Min"]
[Result "0-1"]
[ECO "D20"]
[WhiteElo "2229"]
[BlackElo "2466"]
[Annotator "ChessBase"]
[PlyCount "90"]
[EventDate "2019.07.27"]
[EventCountry "GER"]
[SourceTitle "playchess.com"]
[Source "ChessBase"]
[SourceQuality "1"]
[TimeControl "40/5400+30:1800+30"]

1. d4 {[%emt 0:00:00]} d5 {[%emt 0:00:00]} 2. c4 {[%emt 0:00:00]} dxc4 {[%emt 0:00:00]} 3. e4 {[%emt 0:00:54]} Nc6 {[%emt 0:00:12]} 4. d5 {[%emt 0:05:04]} Ne5 {[%emt 0:00:10]} 5. Bxc4 {[%emt 0:01:54]} Nxc4 {[%emt 0:01:01]} 6. Qa4+ {[%emt 0:00:12]} c6 {[%emt 0:00:15]} 7. Qxc4 {[%emt 0:00:14]} cxd5 {[%emt 0:09:47]} 8. exd5 {[%emt 0:00:48]} a6 {[%emt 0:00:02]} 9. Nf3 {[%emt 0:11:43]} Nf6 {[%emt 0:01:46]} 10. Nc3 {[%emt 0:01:04]} b5 {[%emt 0:07:13]} 11. Qd4 {[%emt 0:01:14]} Bb7 {[%emt 0:11:23]} 12. a4 {[%emt 0:18:15]} Nxd5 {[%emt 0:04:46]} 13. axb5 {[%emt 0:00:20]} Nxc3 {[%emt 0:02:35]} 14. Qxc3 {[%emt 0:02:26]} Rc8 {[%emt 0:02:58]} 15. Qe5 {[%emt 0:06:31]} Qd3 {[%emt 0:01:17]} 16. bxa6 {[%emt 0:01:34]} Bxa6 {[%emt 0:13:10]} 17. Qe3 {[%emt 0:03:06]} Qb5 {[%emt 0:00:02]} 18. Nd4 {[%emt 0:05:13]} Qb7 {[%emt 0:06:35]} 19. Qf3 {[%emt 0:13:13]} e5 {[%emt 0:05:33]} 20. Qxb7 {[%emt 0:00:42]} Bxb7 {[%emt 0:00:02]} 21. Nf3 {[%emt 0:00:25]} f6 {[%emt 0:04:00]} 22. O-O {[%emt 0:02:02]} Kf7 {[%emt 0:04:41]} 23. Be3 {[%emt 0:00:37]} Be7 {[%emt 0:03:32]} 24. Rfc1 {[%emt 0:01:28]} Bd5 {[%emt 0:00:24]} 25. Nd2 {[%emt 0:01:20]} Rxc1+ {[%emt 0:00:10]} 26. Rxc1 {[%emt 0:00:01]} Rb8 {[%emt 0:00:00]} 27. Rc2 {[%emt 0:00:49]} Ke6 {[%emt 0:01:11]} 28. f3 {[%emt 0:00:31]} f5 {[%emt 0:01:27]} 29. g3 {[%emt 0:02:04]} g5 {[%emt 0:02:50]} 30. Kf1 {[%emt 0:01:26]} Ra8 {[%emt 0:02:38]} 31. Bc5 {[%emt 0:01:17]} Ra1+ {[%emt 0:00:05]} 32. Kf2 {[%emt 0:00:27]} Bf6 {[%emt 0:00:10]} 33. b4 {[%emt 0:06:01]} Rh1 {[%emt 0:05:49]} 34. Kg2 {[%emt 0:00:13]} Rd1 {[%emt 0:00:01]} 35. Kf2 {[%emt 0:00:29]} Rh1 {[%emt 0:00:16]} 36. Kg2 {[%emt 0:00:06]} Rd1 {[%emt 0:00:03]} 37. Kf2 {[%emt 0:00:06]} Bd8 {[%emt 0:03:08]} 38. Be3 {[%emt 0:11:50]} h5 {[%emt 0:03:25]} 39. Rb2 {[%emt 0:02:02]} f4 {[%emt 0:03:18]} 40. Bc5 {[%emt 0:00:13]} g4 {[%emt 0:00:23]} 41. gxf4 {[%emt 0:23:06]} exf4 {[%emt 0:01:10]} 42. Kg2 {[%emt 0:02:55]} Bh4 {[%emt 0:02:52]} 43. Bf2 {[%emt 0:03:10]} Bf6 {[%emt 0:00:16]} 44. Rc2 {[%emt 0:00:05]} gxf3+ {[%emt 0:00:08]} 45. Kh3 {[%emt 0:00:54]} Ke5 0-1

[Event "8. Arber-Schachopen 2019"]
[Site "Bodenmais"]
[Date "2019.08.02"]
[Round "7.6"]
[White "Bensch, Patrick"]
[Black "Kolb, Wolfgang"]
[Result "1-0"]
[ECO "A30"]
[WhiteElo "2197"]
[BlackElo "2099"]
[Annotator "ChessBase"]
[PlyCount "71"]
[EventDate "2019.07.27"]
[EventCountry "GER"]
[SourceTitle "playchess.com"]
[Source "ChessBase"]
[SourceQuality "1"]
[TimeControl "40/5400+30:1800+30"]

1. c4 {[%emt 0:08:23]} c5 {[%emt 0:00:00]} 2. Nf3 {[%emt 0:00:37]} Nc6 {[%emt 0:00:00]} 3. Nc3 {[%emt 0:01:18]} g6 4. d4 {[%emt 0:07:50]} cxd4 {[%emt 0:01:05]} 5. Nxd4 {[%emt 0:00:03]} Bg7 {[%emt 0:00:11]} 6. Nc2 {[%emt 0:00:19]} d6 {[%emt 0:03:10]} 7. e4 {[%emt 0:07:22]} Nf6 {[%emt 0:01:05]} 8. Be2 {[%emt 0:00:25]} O-O {[%emt 0:00:19]} 9. O-O {[%emt 0:00:16]} b6 {[%emt 0:05:53]} 10. Bg5 {[%emt 0:05:08]} Bb7 {[%emt 0:07:55]} 11. Qd2 {[%emt 0:05:08]} Rc8 {[%emt 0:01:32]} 12. f3 {[%emt 0:09:35]} Re8 {[%emt 0:24:51]} 13. Rac1 {[%emt 0:03:50]} Ne5 {[%emt 0:07:39]} 14. b3 {[%emt 0:04:01]} Qc7 {[%emt 0:02:48]} 15. Rfd1 {[%emt 0:03:36]} Qb8 {[%emt 0:03:56]} 16. Nb4 {[%emt 0:05:13]} Ned7 {[%emt 0:04:54]} 17. Nbd5 {[%emt 0:04:08]} Nxd5 {[%emt 0:02:27]} 18. Nxd5 {[%emt 0:04:15]} Bxd5 {[%emt 0:04:50]} 19. cxd5 {[%emt 0:10:00]} Kf8 {[%emt 0:03:33]} 20. Bb5 {[%emt 0:02:10]} Red8 {[%emt 0:00:16]} 21. Bc6 {[%emt 0:06:45]} Ne5 {[%emt 0:05:09]} 22. b4 {[%emt 0:01:32]} Rc7 {[%emt 0:09:22]} 23. b5 {[%emt 0:00:29]} Nd7 {[%emt 0:00:09]} 24. Qf2 {[%emt 0:01:39]} Nc5 {[%emt 0:00:30]} 25. Qh4 {[%emt 0:01:11]} h5 {[%emt 0:00:40]} 26. Rc4 {[%emt 0:04:16]} f6 {[%emt 0:01:11]} 27. Be3 {[%emt 0:00:29]} Kf7 {[%emt 0:00:24]} 28. f4 {[%emt 0:00:56]} Rh8 {[%emt 0:00:16]} 29. Rf1 {[%emt 0:00:54]} Qc8 {[%emt 0:00:17]} 30. f5 {[%emt 0:01:03]} Bh6 {[%emt 0:02:20]} 31. fxg6+ {[%emt 0:00:40]} Kxg6 {[%emt 0:00:36]} 32. Bxh6 {[%emt 0:00:31]} Rxh6 {[%emt 0:00:48]} 33. Rc3 {[%emt 0:00:51]} Kh7 {[%emt 0:02:26]} 34. Rf5 {[%emt 0:00:20]} Qf8 {[%emt 0:01:07]} 35. Rxh5 {[%emt 0:00:37]} Nd7 {[%emt 0:03:48]} 36. Rh3 {[%emt 0:00:29]} 1-0

[Event "8. Arber-Schachopen 2019"]
[Site "Bodenmais"]
[Date "2019.08.02"]
[Round "7.7"]
[White "Rotstein, Arkadij"]
[Black "Pap, Misa"]
[Result "1-0"]
[ECO "A88"]
[WhiteElo "2471"]
[BlackElo "2461"]
[Annotator "ChessBase"]
[PlyCount "85"]
[EventDate "2019.07.27"]
[EventCountry "GER"]
[SourceTitle "playchess.com"]
[Source "ChessBase"]
[SourceQuality "1"]
[TimeControl "40/5400+30:1800+30"]

1. d4 {[%emt 0:00:00]} f5 {[%emt 0:04:38]} 2. g3 {[%emt 0:01:47]} Nf6 {[%emt 0:00:07]} 3. Bg2 {[%emt 0:00:04]} g6 {[%emt 0:00:16]} 4. c4 {[%emt 0:00:53]} Bg7 {[%emt 0:00:13]} 5. Nc3 {[%emt 0:00:36]} O-O {[%emt 0:01:08]} 6. Nf3 {[%emt 0:00:30]} d6 {[%emt 0:00:08]} 7. O-O {[%emt 0:00:43]} c6 {[%emt 0:00:03]} 8. b3 {[%emt 0:00:55]} a5 {[%emt 0:02:29]} 9. Bb2 {[%emt 0:00:52]} Na6 {[%emt 0:01:11]} 10. Qc2 {[%emt 0:02:09]} Qc7 {[%emt 0:12:55]} 11. Rac1 {[%emt 0:26:36]} e5 {[%emt 0:04:29]} 12. d5 {[%emt 0:01:00]} e4 {[%emt 0:15:47]} 13. Nd4 {[%emt 0:19:29]} Bd7 {[%emt 0:06:29]} 14. Qd2 {[%emt 0:13:05]} Rfe8 {[%emt 0:11:53]} 15. e3 {[%emt 0:07:43]} Nc5 {[%emt 0:02:10]} 16. dxc6 {[%emt 0:02:35]} bxc6 {[%emt 0:01:02]} 17. Ba3 {[%emt 0:00:13]} Ng4 {[%emt 0:12:22]} 18. Bxc5 {[%emt 0:04:41]} dxc5 {[%emt 0:00:04]} 19. Nde2 {[%emt 0:00:06]} Be6 {[%emt 0:00:44]} 20. Na4 {[%emt 0:00:34]} Rad8 {[%emt 0:00:16]} 21. Qc2 {[%emt 0:00:14]} Bf7 {[%emt 0:09:47]} 22. Rcd1 {[%emt 0:01:19]} Bf8 {[%emt 0:03:45]} 23. Rxd8 {[%emt 0:01:21]} Rxd8 {[%emt 0:00:02]} 24. Rd1 {[%emt 0:00:09]} Ne5 {[%emt 0:01:35]} 25. h4 {[%emt 0:03:12]} h6 {[%emt 0:00:28]} 26. Bh3 {[%emt 0:01:03]} Nf3+ {[%emt 0:02:24]} 27. Kf1 {[%emt 0:00:22]} Re8 {[%emt 0:01:39]} 28. Qb2 {[%emt 0:02:00]} Rb8 {[%emt 0:01:52]} 29. h5 {[%emt 0:01:08]} Rd8 {[%emt 0:01:42]} 30. Qc2 {[%emt 0:00:30]} Rxd1+ {[%emt 0:01:33]} 31. Qxd1 {[%emt 0:00:01]} Qe5 {[%emt 0:01:03]} 32. hxg6 {[%emt 0:00:34]} Bxg6 {[%emt 0:00:02]} 33. Nf4 {[%emt 0:00:11]} Bf7 {[%emt 0:00:25]} 34. Nb6 {[%emt 0:03:36]} Be7 {[%emt 0:01:29]} 35. Nd7 {[%emt 0:00:32]} Qb2 {[%emt 0:00:16]} 36. Bxf5 {[%emt 0:00:21]} Qxa2 {[%emt 0:00:06]} 37. Kg2 {[%emt 0:00:57]} Qd2 {[%emt 0:00:11]} 38. Qa1 {[%emt 0:01:15]} Ne1+ {[%emt 0:00:08]} 39. Kg1 {[%emt 0:02:24]} Nf3+ {[%emt 0:01:19]} 40. Kf1 {[%emt 0:00:29]} Qc2 {[%emt 0:01:11]} 41. Kg2 {[%emt 0:05:46]} Qd2 {[%emt 0:04:11]} 42. Nf6+ {[%emt 0:03:14]} Kf8 {[%emt 0:00:12]} 43. Nxe4 {[%emt 0:00:38]} 1-0

[Event "8. Arber-Schachopen 2019"]
[Site "Bodenmais"]
[Date "2019.08.02"]
[Round "7.8"]
[White "Kleibel, Uwe"]
[Black "Sergeev, Vladimir"]
[Result "0-1"]
[ECO "B40"]
[WhiteElo "2217"]
[BlackElo "2415"]
[Annotator "ChessBase"]
[PlyCount "82"]
[EventDate "2019.07.27"]
[EventCountry "GER"]
[SourceTitle "playchess.com"]
[Source "ChessBase"]
[SourceQuality "1"]
[TimeControl "40/5400+30:1800+30"]

1. e4 {[%emt 0:00:00]} c5 {[%emt 0:05:52]} 2. Nf3 {[%emt 0:00:00]} e6 {[%emt 0:00:04]} 3. g3 {[%emt 0:00:00]} Nf6 {[%emt 0:00:33]} 4. e5 {[%emt 0:01:31]} Nd5 {[%emt 0:00:07]} 5. Bg2 {[%emt 0:00:14]} Nc6 {[%emt 0:00:18]} 6. O-O {[%emt 0:00:12]} Be7 {[%emt 0:00:12]} 7. Qe2 {[%emt 0:03:39]} O-O {[%emt 0:00:27]} 8. Rd1 {[%emt 0:00:16]} Qc7 {[%emt 0:03:07]} 9. c4 {[%emt 0:01:36]} Ndb4 {[%emt 0:04:29]} 10. d3 {[%emt 0:01:21]} Nd4 {[%emt 0:00:27]} 11. Nxd4 {[%emt 0:00:08]} cxd4 {[%emt 0:00:02]} 12. Bf4 {[%emt 0:01:29]} Nc6 {[%emt 0:00:11]} 13. h4 {[%emt 0:00:28]} d6 {[%emt 0:00:35]} 14. exd6 {[%emt 0:03:55]} Bxd6 {[%emt 0:01:47]} 15. Bxd6 {[%emt 0:00:12]} Qxd6 {[%emt 0:00:23]} 16. Nd2 {[%emt 0:00:17]} Bd7 {[%emt 0:14:48]} 17. Ne4 {[%emt 0:06:53]} Qe7 {[%emt 0:00:34]} 18. a3 {[%emt 0:01:54]} a5 {[%emt 0:02:25]} 19. b3 {[%emt 0:10:35]} Rab8 {[%emt 0:05:49]} 20. Qh5 {[%emt 0:05:31]} b6 {[%emt 0:06:06]} 21. Re1 {[%emt 0:08:40]} Rfc8 {[%emt 0:05:50]} 22. f4 {[%emt 0:03:20]} f6 {[%emt 0:20:16]} 23. Ra2 {[%emt 0:09:43]} Rc7 {[%emt 0:02:17]} 24. Nf2 {[%emt 0:12:44]} f5 {[%emt 0:06:28]} 25. Nh3 {[%emt 0:04:19]} h6 {[%emt 0:01:06]} 26. Kh2 {[%emt 0:11:05]} b5 {[%emt 0:00:51]} 27. Bd5 {[%emt 0:08:27]} Qf7 {[%emt 0:05:40]} 28. Qxf7+ {[%emt 0:00:33]} Kxf7 {[%emt 0:00:00]} 29. cxb5 {[%emt 0:00:31]} exd5 {[%emt 0:07:18]} 30. bxc6 {[%emt 0:00:03]} Rxc6 {[%emt 0:00:16]} 31. Ng1 {[%emt 0:00:31]} Rc3 {[%emt 0:02:12]} 32. Nf3 {[%emt 0:00:12]} Bb5 {[%emt 0:00:51]} 33. Rae2 {[%emt 0:04:10]} Bxd3 {[%emt 0:00:37]} 34. Re7+ {[%emt 0:00:12]} Kf8 {[%emt 0:00:22]} 35. R1e6 {[%emt 0:00:45]} Rc2+ {[%emt 0:00:47]} 36. Kg1 {[%emt 0:00:14]} Be4 {[%emt 0:02:46]} 37. Ne5 {[%emt 0:00:09]} Rbc8 {[%emt 0:00:01]} 38. Nd7+ {[%emt 0:02:10]} Kg8 {[%emt 0:00:01]} 39. Re8+ {[%emt 0:00:11]} Rxe8 {[%emt 0:00:06]} 40. Rxe8+ {[%emt 0:00:01]} Kf7 {[%emt 0:00:11]} 41. Ra8 {[%emt 0:04:00]} d3 {[%emt 0:00:34]} 0-1